[Event "*** Titled Tuesday Blitz"]
[Site "Chess.com"]
[Date "2021.04.20"]
[Round "9"]
[White "anon569"]
[Black "BL4D3RUNN3R"]
[Result "1/2-1/2"]
[WhiteElo "2223"]
[BlackElo "2115"]
[TimeControl "180+1"]
[EndTime "11:45:01 PDT"]
[Termination "Game drawn by repetition"]

1. e4 {[%clk 0:03:00.9]} 1... c6 {[%clk 0:02:59.4]} 2. d4 {[%clk 0:02:58.1]}
2... d5 {[%clk 0:02:59.1]} 3. Nd2 {[%clk 0:02:58.6]} 3... dxe4 {[%clk
0:02:58.8]} 4. Nxe4 {[%clk 0:02:57.2]} 4... Nf6 {[%clk 0:02:58.7]} 5. Nxf6+
{[%clk 0:02:57]} 5... exf6 {[%clk 0:02:58.2]} 6. Be3 {[%clk 0:02:54.9]} 6... Bd6
{[%clk 0:02:53.6]} 7. Nf3 {[%clk 0:02:52.2]} 7... O-O {[%clk 0:02:51.9]} 8. Qd2
{[%clk 0:02:47.1]} 8... Be6 {[%clk 0:02:39.8]} 9. Bd3 {[%clk 0:02:43.6]} 9...
Re8 {[%clk 0:02:37.3]} 10. h3 {[%clk 0:02:15.2]} 10... Nd7 {[%clk 0:02:34.8]}
11. O-O {[%clk 0:02:11.2]} 11... Nf8 {[%clk 0:02:33.8]} 12. c4 {[%clk
0:02:09.7]} 12... Ng6 {[%clk 0:02:29.4]} 13. Rfd1 {[%clk 0:02:01.6]} 13... Qd7
{[%clk 0:02:26.4]} 14. Bf1 {[%clk 0:01:34.9]} 14... Rad8 {[%clk 0:02:21.7]} 15.
d5 {[%clk 0:01:30.4]} 15... cxd5 {[%clk 0:02:14.4]} 16. cxd5 {[%clk 0:01:29.4]}
16... Bf5 {[%clk 0:02:07.3]} 17. Bxa7 {[%clk 0:01:28.9]} 17... Be4 {[%clk
0:01:59.8]} 18. Nd4 {[%clk 0:01:11.6]} 18... Bxd5 {[%clk 0:01:50.4]} 19. Bb6
{[%clk 0:00:59.3]} 19... Bc7 {[%clk 0:01:32]} 20. Bb5 {[%clk 0:00:29.3]} 20...
Bc6 {[%clk 0:01:22.9]} 21. Nxc6 {[%clk 0:00:22.8]} 21... Qxd2 {[%clk 0:01:19.3]}
22. Nxd8 {[%clk 0:00:22.5]} 22... Qxb2 {[%clk 0:01:01.2]} 23. Rab1 {[%clk
0:00:08.4]} 23... Qe5 {[%clk 0:00:58.8]} 24. Bxe8 {[%clk 0:00:07.6]} 24... Qh2+
{[%clk 0:00:49.5]} 25. Kf1 {[%clk 0:00:07]} 25... Nf4 {[%clk 0:00:45.4]} 26. Ke1
{[%clk 0:00:03]} 26... Bxb6 {[%clk 0:00:37.4]} 27. Bxf7+ {[%clk 0:00:01.8]}
27... Kf8 {[%clk 0:00:34]} 28. Rxb6 {[%clk 0:00:02.3]} 28... Qxg2 {[%clk
0:00:24.8]} 29. Ne6+ {[%clk 0:00:01.6]} 29... Nxe6 {[%clk 0:00:14.2]} 30. Bxe6
{[%clk 0:00:02.3]} 30... Qe4+ {[%clk 0:00:13.4]} 31. Kf1 {[%clk 0:00:02.5]}
31... Ke7 {[%clk 0:00:08.5]} 32. Rbd6 {[%clk 0:00:01.9]} 32... Qh1+ {[%clk
0:00:05.4]} 33. Ke2 {[%clk 0:00:01.7]} 33... Qe4+ {[%clk 0:00:04.8]} 34. Kf1
{[%clk 0:00:02]} 34... Qh1+ {[%clk 0:00:04.3]} 35. Ke2 {[%clk 0:00:02.6]} 35...
Qe4+ {[%clk 0:00:04.1]} 36. Kf1 {[%clk 0:00:03.2]} 1/2-1/2

[Event "*** Titled Tuesday Blitz"]
[Site "Chess.com"]
[Date "2021.04.20"]
[Round "9"]
[White "SmoothAsAHedgehog"]
[Black "dmitrijiIM"]
[Result "1-0"]
[WhiteElo "2681"]
[BlackElo "2545"]
[TimeControl "180+1"]
[EndTime "11:45:03 PDT"]
[Termination "SmoothAsAHedgehog won by resignation"]

1. e4 {[%clk 0:03:00.9]} 1... e5 {[%clk 0:02:59.8]} 2. Nf3 {[%clk 0:03:00.8]}
2... Nc6 {[%clk 0:02:59.8]} 3. Bc4 {[%clk 0:03:00.5]} 3... Nf6 {[%clk
0:02:59.9]} 4. d3 {[%clk 0:03:00.5]} 4... Bc5 {[%clk 0:02:59.5]} 5. c3 {[%clk
0:03:00.4]} 5... O-O {[%clk 0:02:59.6]} 6. Nbd2 {[%clk 0:02:58.1]} 6... d5
{[%clk 0:02:59.7]} 7. Bb3 {[%clk 0:02:55.4]} 7... Bg4 {[%clk 0:02:51.6]} 8. h3
{[%clk 0:02:50.4]} 8... Bh5 {[%clk 0:02:49.1]} 9. O-O {[%clk 0:02:46.3]} 9... a5
{[%clk 0:02:07.6]} 10. Qe2 {[%clk 0:02:40.2]} 10... Re8 {[%clk 0:02:07]} 11. Re1
{[%clk 0:02:35.6]} 11... a4 {[%clk 0:02:04.6]} 12. Bc2 {[%clk 0:02:35.4]} 12...
a3 {[%clk 0:02:05]} 13. b4 {[%clk 0:02:34.4]} 13... Bb6 {[%clk 0:02:05.1]} 14.
b5 {[%clk 0:02:27.9]} 14... Na7 {[%clk 0:01:45.7]} 15. g4 {[%clk 0:02:26.8]}
15... Bg6 {[%clk 0:01:45.4]} 16. Rb1 {[%clk 0:02:19.2]} 16... Nc8 {[%clk
0:01:42]} 17. c4 {[%clk 0:02:14.2]} 17... dxe4 {[%clk 0:01:29.2]} 18. dxe4
{[%clk 0:02:13.6]} 18... Nd6 {[%clk 0:01:24.4]} 19. Kg2 {[%clk 0:01:19.4]} 19...
Qe7 {[%clk 0:00:54.7]} 20. Nh4 {[%clk 0:01:16.9]} 20... Qe6 {[%clk 0:00:38.4]}
21. Nf5 {[%clk 0:01:14.4]} 21... Nd7 {[%clk 0:00:36]} 22. Rb3 {[%clk 0:01:06.8]}
22... Bc5 {[%clk 0:00:27.6]} 23. Rf3 {[%clk 0:00:58.9]} 23... Nb6 {[%clk
0:00:23.9]} 24. Bb3 {[%clk 0:00:59.1]} 24... Rad8 {[%clk 0:00:18.5]} 25. h4
{[%clk 0:00:59.4]} 25... h5 {[%clk 0:00:17.7]} 26. Rg3 {[%clk 0:00:58.8]} 26...
hxg4 {[%clk 0:00:17]} 27. Qxg4 {[%clk 0:00:59.2]} 27... Nxf5 {[%clk 0:00:16.7]}
28. exf5 {[%clk 0:00:56.5]} 28... Qxf5 {[%clk 0:00:17.1]} 29. Qxf5 {[%clk
0:00:54.8]} 29... Bxf5 {[%clk 0:00:18]} 30. Ne4 {[%clk 0:00:55]} 30... Bxe4+
{[%clk 0:00:12.5]} 31. Rxe4 {[%clk 0:00:55.9]} 31... f6 {[%clk 0:00:10.7]} 32.
h5 {[%clk 0:00:55.1]} 32... Kf7 {[%clk 0:00:10.7]} 33. Bc2 {[%clk 0:00:51.6]}
33... Rg8 {[%clk 0:00:06.8]} 34. Reg4 {[%clk 0:00:49.8]} 34... Nd7 {[%clk
0:00:03.8]} 35. Bg6+ {[%clk 0:00:44.1]} 35... Ke7 {[%clk 0:00:03.7]} 36. Bf5
{[%clk 0:00:43.6]} 36... Kf7 {[%clk 0:00:02.3]} 37. Bxa3 {[%clk 0:00:42.1]}
37... Bxa3 {[%clk 0:00:01.8]} 38. Rxa3 {[%clk 0:00:43]} 38... Nc5 {[%clk
0:00:02.1]} 39. Rag3 {[%clk 0:00:40.9]} 39... Ne6 {[%clk 0:00:02.2]} 40. Bxe6+
{[%clk 0:00:38.1]} 40... Kxe6 {[%clk 0:00:03.1]} 41. Rxg7 {[%clk 0:00:38.7]}
41... Rxg7 {[%clk 0:00:04]} 42. Rxg7 {[%clk 0:00:39]} 42... Rh8 {[%clk
0:00:04.9]} 43. Rxc7 {[%clk 0:00:38.1]} 43... Rxh5 {[%clk 0:00:05.6]} 44. Rxb7
{[%clk 0:00:38.6]} 44... Kd6 {[%clk 0:00:05.3]} 45. Rb6+ {[%clk 0:00:37.2]}
45... Kc5 {[%clk 0:00:05.6]} 46. Rc6+ {[%clk 0:00:36.6]} 46... Kb4 {[%clk
0:00:06.2]} 47. b6 {[%clk 0:00:36]} 47... Rh8 {[%clk 0:00:06.8]} 48. c5 {[%clk
0:00:34.8]} 48... Kb5 {[%clk 0:00:07.1]} 49. Rc7 {[%clk 0:00:34.8]} 49... Ra8
{[%clk 0:00:07.1]} 50. b7 {[%clk 0:00:34.5]} 50... Rc8 {[%clk 0:00:05.4]} 51.
bxc8=Q {[%clk 0:00:32.6]} 1-0

[Event "*** Titled Tuesday Blitz"]
[Site "Chess.com"]
[Date "2021.04.20"]
[Round "9"]
[White "jamalm2"]
[Black "Klavdia_Nik"]
[Result "0-1"]
[WhiteElo "2026"]
[BlackElo "2043"]
[TimeControl "180+1"]
[EndTime "11:45:04 PDT"]
[Termination "Klavdia_Nik won on time"]

1. e4 {[%clk 0:03:00.9]} 1... g6 {[%clk 0:00:57.5]} 2. d4 {[%clk 0:02:58.2]}
2... Bg7 {[%clk 0:00:56.4]} 3. Nc3 {[%clk 0:02:57]} 3... c5 {[%clk 0:00:54.1]}
4. Be3 {[%clk 0:02:52.8]} 4... Qa5 {[%clk 0:00:52.1]} 5. Qd2 {[%clk 0:02:49.5]}
5... Nf6 {[%clk 0:00:29.9]} 6. f3 {[%clk 0:02:37.1]} 6... cxd4 {[%clk
0:00:27.6]} 7. Bxd4 {[%clk 0:02:34.8]} 7... d6 {[%clk 0:00:27.8]} 8. a3 {[%clk
0:02:20.3]} 8... Nc6 {[%clk 0:00:26.3]} 9. Bb5 {[%clk 0:02:18.4]} 9... O-O
{[%clk 0:00:24.8]} 10. Bxc6 {[%clk 0:02:16.4]} 10... bxc6 {[%clk 0:00:24.5]} 11.
Nge2 {[%clk 0:02:16]} 11... c5 {[%clk 0:00:23.8]} 12. Be3 {[%clk 0:02:15.4]}
12... Re8 {[%clk 0:00:23.6]} 13. O-O {[%clk 0:02:13.1]} 13... Ba6 {[%clk
0:00:22.3]} 14. Rf2 {[%clk 0:02:06]} 14... Qc7 {[%clk 0:00:20.4]} 15. Bh6 {[%clk
0:02:02.2]} 15... Bh8 {[%clk 0:00:19.8]} 16. Rd1 {[%clk 0:01:57.7]} 16... Rab8
{[%clk 0:00:19.7]} 17. b3 {[%clk 0:01:53.5]} 17... Qa5 {[%clk 0:00:19.6]} 18. a4
{[%clk 0:01:41.2]} 18... Bxe2 {[%clk 0:00:16.2]} 19. Nxe2 {[%clk 0:01:37.8]}
19... Qxd2 {[%clk 0:00:14.6]} 20. Rxd2 {[%clk 0:01:34.6]} 20... c4 {[%clk
0:00:14.8]} 21. bxc4 {[%clk 0:01:29.2]} 21... Rec8 {[%clk 0:00:14.5]} 22. Be3
{[%clk 0:01:10.1]} 22... Rb4 {[%clk 0:00:11.8]} 23. Bxa7 {[%clk 0:00:45.6]}
23... Rxa4 {[%clk 0:00:10.6]} 24. Be3 {[%clk 0:00:39.6]} 24... Raxc4 {[%clk
0:00:10.2]} 25. c3 {[%clk 0:00:37.5]} 25... Nd7 {[%clk 0:00:10.1]} 26. Bd4
{[%clk 0:00:34.1]} 26... Be5 {[%clk 0:00:09.6]} 27. f4 {[%clk 0:00:28.5]} 27...
Bf6 {[%clk 0:00:09.6]} 28. g3 {[%clk 0:00:24.9]} 28... Kg7 {[%clk 0:00:08.5]}
29. Kg2 {[%clk 0:00:23.2]} 29... h5 {[%clk 0:00:08.6]} 30. h3 {[%clk 0:00:21.5]}
30... e5 {[%clk 0:00:08.8]} 31. fxe5 {[%clk 0:00:19.7]} 31... dxe5 {[%clk
0:00:08.5]} 32. Be3 {[%clk 0:00:18.5]} 32... Nc5 {[%clk 0:00:09.1]} 33. Rd5
{[%clk 0:00:07.8]} 33... Nxe4 {[%clk 0:00:08.7]} 34. Rf3 {[%clk 0:00:03.9]}
34... Nxc3 {[%clk 0:00:08.7]} 35. Nxc3 {[%clk 0:00:02.5]} 35... Rxc3 {[%clk
0:00:09]} 0-1

[Event "*** Titled Tuesday Blitz"]
[Site "Chess.com"]
[Date "2021.04.20"]
[Round "9"]
[White "UKR_Master"]
[Black "SirStrateg"]
[Result "0-1"]
[WhiteElo "2482"]
[BlackElo "2620"]
[TimeControl "180+1"]
[EndTime "11:45:06 PDT"]
[Termination "SirStrateg won by resignation"]

1. e4 {[%clk 0:02:55]} 1... d6 {[%clk 0:03:00.1]} 2. d4 {[%clk 0:02:54.6]} 2...
Nf6 {[%clk 0:02:59.1]} 3. Nc3 {[%clk 0:02:55]} 3... c6 {[%clk 0:02:59.6]} 4. g3
{[%clk 0:02:55.1]} 4... Nbd7 {[%clk 0:02:58.9]} 5. Bg2 {[%clk 0:02:55.5]} 5...
e5 {[%clk 0:02:59.6]} 6. Nge2 {[%clk 0:02:55.3]} 6... Be7 {[%clk 0:02:59.9]} 7.
O-O {[%clk 0:02:55.6]} 7... b5 {[%clk 0:03:00]} 8. a4 {[%clk 0:02:51.3]} 8... b4
{[%clk 0:02:59.9]} 9. Nb1 {[%clk 0:02:50.6]} 9... a5 {[%clk 0:03:00.4]} 10. c3
{[%clk 0:02:50.5]} 10... O-O {[%clk 0:02:52.3]} 11. h3 {[%clk 0:02:48.7]} 11...
Ba6 {[%clk 0:02:51.6]} 12. Re1 {[%clk 0:02:47.5]} 12... c5 {[%clk 0:02:19.7]}
13. d5 {[%clk 0:02:39.4]} 13... Ne8 {[%clk 0:02:08]} 14. Nd2 {[%clk 0:02:35]}
14... Nb6 {[%clk 0:02:04.6]} 15. Qc2 {[%clk 0:02:21.9]} 15... Bg5 {[%clk
0:02:01.8]} 16. f4 {[%clk 0:02:18.4]} 16... exf4 {[%clk 0:01:39.3]} 17. Nxf4
{[%clk 0:02:18.2]} 17... Nc4 {[%clk 0:01:04.4]} 18. Nxc4 {[%clk 0:02:06.1]}
18... Bxc4 {[%clk 0:01:03.9]} 19. Bf1 {[%clk 0:02:03.6]} 19... Bxf1 {[%clk
0:00:59.9]} 20. Rxf1 {[%clk 0:02:03.5]} 20... Nf6 {[%clk 0:00:42.7]} 21. c4
{[%clk 0:01:33.6]} 21... Qe7 {[%clk 0:00:38.7]} 22. Re1 {[%clk 0:01:17.8]} 22...
Rae8 {[%clk 0:00:35.8]} 23. e5 {[%clk 0:00:27.3]} 23... dxe5 {[%clk 0:00:35.5]}
24. Nd3 {[%clk 0:00:27.7]} 24... Bxc1 {[%clk 0:00:33.6]} 25. Qxc1 {[%clk
0:00:28.2]} 25... Nd7 {[%clk 0:00:30.2]} 26. Qe3 {[%clk 0:00:27.8]} 26... e4
{[%clk 0:00:18.6]} 27. Nf4 {[%clk 0:00:26.2]} 27... Qe5 {[%clk 0:00:18.7]} 28.
b3 {[%clk 0:00:25.9]} 28... g5 {[%clk 0:00:14.6]} 29. Ne2 {[%clk 0:00:14.5]}
29... h6 {[%clk 0:00:15.1]} 30. Rf1 {[%clk 0:00:13.8]} 30... f5 {[%clk
0:00:15.1]} 31. Rae1 {[%clk 0:00:13.3]} 31... Kg7 {[%clk 0:00:13.6]} 32. Rf2
{[%clk 0:00:14]} 32... Kg6 {[%clk 0:00:13.7]} 33. Ref1 {[%clk 0:00:14.7]} 33...
Rf6 {[%clk 0:00:12.7]} 34. Rg2 {[%clk 0:00:15.2]} 34... Ref8 {[%clk 0:00:12.8]}
35. Nf4+ {[%clk 0:00:15.4]} 35... Kh7 {[%clk 0:00:12.1]} 36. Ne6 {[%clk
0:00:13.1]} 36... Rxe6 {[%clk 0:00:11.8]} 37. dxe6 {[%clk 0:00:13.3]} 37... Qxe6
{[%clk 0:00:12.4]} 38. Rd1 {[%clk 0:00:13.6]} 38... Ne5 {[%clk 0:00:10.8]} 39.
Qxc5 {[%clk 0:00:14]} 39... Nf3+ {[%clk 0:00:11.2]} 40. Kh1 {[%clk 0:00:14.1]}
40... Rf7 {[%clk 0:00:11]} 41. Re1 {[%clk 0:00:12]} 41... f4 {[%clk 0:00:09.8]}
42. Ree2 {[%clk 0:00:08.8]} 42... Qxh3+ {[%clk 0:00:09.8]} 43. Rh2 {[%clk
0:00:08.3]} 43... Qf1+ {[%clk 0:00:10.1]} 0-1

[Event "*** Titled Tuesday Blitz"]
[Site "Chess.com"]
[Date "2021.04.20"]
[Round "9"]
[White "stepakyedael"]
[Black "leopato"]
[Result "1-0"]
[WhiteElo "2237"]
[BlackElo "2117"]
[TimeControl "180+1"]
[EndTime "11:45:07 PDT"]
[Termination "stepakyedael won on time"]

1. d4 {[%clk 0:02:20]} 1... c6 {[%clk 0:03:00.9]} 2. c4 {[%clk 0:02:19.3]} 2...
d5 {[%clk 0:03:01.7]} 3. e3 {[%clk 0:02:19.8]} 3... Nf6 {[%clk 0:03:01.3]} 4.
Nf3 {[%clk 0:02:19.7]} 4... Bg4 {[%clk 0:02:51.1]} 5. Nc3 {[%clk 0:02:19.5]}
5... e6 {[%clk 0:02:50.8]} 6. Qb3 {[%clk 0:02:19.6]} 6... Qb6 {[%clk 0:02:50.7]}
7. c5 {[%clk 0:02:19.9]} 7... Qc7 {[%clk 0:02:50.8]} 8. Ne5 {[%clk 0:02:17.9]}
8... Bf5 {[%clk 0:02:50.6]} 9. a4 {[%clk 0:02:17.4]} 9... b6 {[%clk 0:02:48]}
10. cxb6 {[%clk 0:02:16.5]} 10... axb6 {[%clk 0:02:47.8]} 11. Bd2 {[%clk
0:02:14.1]} 11... Bd6 {[%clk 0:02:47.1]} 12. Rc1 {[%clk 0:02:09.5]} 12... O-O
{[%clk 0:02:45.2]} 13. Nb5 {[%clk 0:02:06.1]} 13... Qe7 {[%clk 0:02:43.5]} 14.
Nxd6 {[%clk 0:02:06]} 14... Qxd6 {[%clk 0:02:44.4]} 15. Bb4 {[%clk 0:02:06.2]}
15... c5 {[%clk 0:02:43.8]} 16. Ba3 {[%clk 0:01:57]} 16... Rc8 {[%clk
0:02:30.6]} 17. f4 {[%clk 0:01:55.9]} 17... Nbd7 {[%clk 0:02:24]} 18. Bb5 {[%clk
0:01:53]} 18... Nf8 {[%clk 0:02:18.3]} 19. O-O {[%clk 0:01:45.1]} 19... Ne4
{[%clk 0:02:16.3]} 20. Qd1 {[%clk 0:01:41.2]} 20... f6 {[%clk 0:02:12.3]} 21.
Nd3 {[%clk 0:01:37.7]} 21... Nd7 {[%clk 0:02:06.9]} 22. g4 {[%clk 0:01:28.2]}
22... Bg6 {[%clk 0:02:05.2]} 23. f5 {[%clk 0:01:27.5]} 23... exf5 {[%clk
0:01:57.3]} 24. gxf5 {[%clk 0:01:27]} 24... Be8 {[%clk 0:01:56.2]} 25. Nf4
{[%clk 0:01:26.9]} 25... Kh8 {[%clk 0:01:45]} 26. Qg4 {[%clk 0:01:18.2]} 26...
Nf8 {[%clk 0:01:36.6]} 27. Nh5 {[%clk 0:01:06.5]} 27... Ra7 {[%clk 0:01:24]} 28.
Bxe8 {[%clk 0:01:00.6]} 28... Rxe8 {[%clk 0:01:23.4]} 29. Rf3 {[%clk 0:01:00.1]}
29... Ng5 {[%clk 0:01:13.1]} 30. Rg3 {[%clk 0:00:56.2]} 30... Re4 {[%clk
0:01:09]} 31. Nf4 {[%clk 0:00:54.3]} 31... Qe7 {[%clk 0:00:31.4]} 32. h4 {[%clk
0:00:44.8]} 32... Rxe3 {[%clk 0:00:28.9]} 33. hxg5 {[%clk 0:00:43.9]} 33... Re1+
{[%clk 0:00:18.9]} 34. Rxe1 {[%clk 0:00:42.4]} 34... Qxe1+ {[%clk 0:00:19.8]}
35. Kh2 {[%clk 0:00:42.1]} 35... fxg5 {[%clk 0:00:15.2]} 36. Qxg5 {[%clk
0:00:39.1]} 36... Re7 {[%clk 0:00:11.2]} 37. dxc5 {[%clk 0:00:31.2]} 37... bxc5
{[%clk 0:00:08.4]} 38. Bxc5 {[%clk 0:00:27.4]} 38... Qd2+ {[%clk 0:00:07.3]} 39.
Rg2 {[%clk 0:00:24.7]} 39... Qe1 {[%clk 0:00:04.5]} 40. Bxe7 {[%clk 0:00:21.6]}
40... Qe5 {[%clk 0:00:03.3]} 41. Bxf8 {[%clk 0:00:16.9]} 1-0

[Event "*** Titled Tuesday Blitz"]
[Site "Chess.com"]
[Date "2021.04.20"]
[Round "9"]
[White "c_r_e_e_p_e_r"]
[Black "AlexPapasimakopoulos"]
[Result "1-0"]
[WhiteElo "2400"]
[BlackElo "2595"]
[TimeControl "180+1"]
[EndTime "11:45:08 PDT"]
[Termination "c_r_e_e_p_e_r won by checkmate"]

1. e4 {[%clk 0:03:00.9]} 1... e6 {[%clk 0:02:57.4]} 2. d4 {[%clk 0:03:00.5]}
2... d5 {[%clk 0:02:56.7]} 3. e5 {[%clk 0:03:01.1]} 3... b6 {[%clk 0:02:53.6]}
4. c3 {[%clk 0:03:01.8]} 4... Qd7 {[%clk 0:02:53.5]} 5. f4 {[%clk 0:03:01.6]}
5... Nh6 {[%clk 0:02:52.7]} 6. Nf3 {[%clk 0:03:00]} 6... Be7 {[%clk 0:02:52.9]}
7. Be3 {[%clk 0:02:46.5]} 7... Ba6 {[%clk 0:02:52.1]} 8. Bxa6 {[%clk 0:02:46.2]}
8... Nxa6 {[%clk 0:02:53]} 9. O-O {[%clk 0:02:46.6]} 9... c5 {[%clk 0:02:50.9]}
10. Kh1 {[%clk 0:02:46.8]} 10... Nf5 {[%clk 0:02:49.6]} 11. Bg1 {[%clk
0:02:46.3]} 11... h5 {[%clk 0:02:50.1]} 12. g3 {[%clk 0:02:42.1]} 12... Rc8
{[%clk 0:02:33.3]} 13. Qe2 {[%clk 0:02:39.7]} 13... Nb8 {[%clk 0:02:29.8]} 14.
a3 {[%clk 0:02:35.8]} 14... Qb7 {[%clk 0:02:29.3]} 15. b4 {[%clk 0:02:34.3]}
15... Qa6 {[%clk 0:02:27.2]} 16. b5 {[%clk 0:02:33.5]} 16... Qa4 {[%clk
0:02:25.8]} 17. Nbd2 {[%clk 0:02:06.6]} 17... a6 {[%clk 0:02:24.9]} 18. c4
{[%clk 0:02:03.6]} 18... dxc4 {[%clk 0:02:18.3]} 19. Nxc4 {[%clk 0:01:59.3]}
19... Nd7 {[%clk 0:02:10.2]} 20. d5 {[%clk 0:01:45.6]} 20... axb5 {[%clk
0:01:53.2]} 21. Nd6+ {[%clk 0:01:28.5]} 21... Bxd6 {[%clk 0:01:50.6]} 22. dxe6
{[%clk 0:01:24.6]} 22... fxe6 {[%clk 0:01:45.4]} 23. exd6 {[%clk 0:01:24.3]}
23... Qc4 {[%clk 0:01:45.7]} 24. Qb2 {[%clk 0:00:59.3]} 24... O-O {[%clk
0:01:31]} 25. Rac1 {[%clk 0:00:58.2]} 25... Qe4 {[%clk 0:01:18.4]} 26. Rce1
{[%clk 0:00:57.4]} 26... Qd5 {[%clk 0:01:13.4]} 27. Rd1 {[%clk 0:00:57.7]} 27...
Qc6 {[%clk 0:01:13.1]} 28. Qe2 {[%clk 0:00:53.1]} 28... Rce8 {[%clk 0:01:05]}
29. Bf2 {[%clk 0:00:44.2]} 29... Nf6 {[%clk 0:01:01.7]} 30. Kg1 {[%clk
0:00:43.6]} 30... Nd5 {[%clk 0:01:01.7]} 31. Ne5 {[%clk 0:00:38.8]} 31... Qxd6
{[%clk 0:01:01.6]} 32. Qxh5 {[%clk 0:00:37.6]} 32... c4 {[%clk 0:00:50.6]} 33.
Ng6 {[%clk 0:00:35.3]} 33... Rf6 {[%clk 0:00:49.5]} 34. Qh8+ {[%clk 0:00:33.3]}
34... Kf7 {[%clk 0:00:49.4]} 35. Ne5+ {[%clk 0:00:31.9]} 35... Qxe5 {[%clk
0:00:47.4]} 36. Qh5+ {[%clk 0:00:28.1]} 36... Ke7 {[%clk 0:00:15.2]} 37. fxe5
{[%clk 0:00:28.2]} 37... Rh6 {[%clk 0:00:15.5]} 38. Qg5+ {[%clk 0:00:27.4]}
38... Kd7 {[%clk 0:00:16.1]} 39. Rxd5+ {[%clk 0:00:26.7]} 39... exd5 {[%clk
0:00:15.7]} 40. Qxf5+ {[%clk 0:00:27.2]} 40... Rhe6 {[%clk 0:00:16]} 41. Bd4
{[%clk 0:00:22.8]} 41... Kc6 {[%clk 0:00:15.9]} 42. Rb1 {[%clk 0:00:20]} 42...
R6e7 {[%clk 0:00:15.2]} 43. a4 {[%clk 0:00:18.9]} 43... b4 {[%clk 0:00:11.6]}
44. Rxb4 {[%clk 0:00:19]} 44... Rb7 {[%clk 0:00:10.9]} 45. Qg6+ {[%clk
0:00:18.2]} 45... Kd7 {[%clk 0:00:10.5]} 46. Qd6+ {[%clk 0:00:15.8]} 46... Kc8
{[%clk 0:00:09.2]} 47. Qc6+ {[%clk 0:00:15.8]} 47... Rc7 {[%clk 0:00:07.9]} 48.
Qxe8+ {[%clk 0:00:15.7]} 48... Kb7 {[%clk 0:00:08.1]} 49. Rxb6+ {[%clk
0:00:16.2]} 49... Ka7 {[%clk 0:00:08.6]} 50. Qb8# {[%clk 0:00:16.8]} 1-0

[Event "*** Titled Tuesday Blitz"]
[Site "Chess.com"]
[Date "2021.04.20"]
[Round "9"]
[White "tteshan"]
[Black "AsaHoffmann"]
[Result "0-1"]
[WhiteElo "2246"]
[BlackElo "2352"]
[TimeControl "180+1"]
[EndTime "11:45:09 PDT"]
[Termination "AsaHoffmann won by resignation"]

1. e4 {[%clk 0:03:00.9]} 1... d6 {[%clk 0:02:54.9]} 2. d4 {[%clk 0:03:00.1]}
2... Nf6 {[%clk 0:02:53.2]} 3. Nc3 {[%clk 0:02:59.8]} 3... c6 {[%clk 0:02:47.4]}
4. f4 {[%clk 0:02:59.2]} 4... Qa5 {[%clk 0:02:46.1]} 5. Bd3 {[%clk 0:02:56.8]}
5... e5 {[%clk 0:02:39.6]} 6. dxe5 {[%clk 0:02:53.9]} 6... dxe5 {[%clk
0:02:39.2]} 7. f5 {[%clk 0:02:51.9]} 7... b5 {[%clk 0:02:37.8]} 8. Bd2 {[%clk
0:02:48.5]} 8... Qb6 {[%clk 0:02:36.7]} 9. Nf3 {[%clk 0:02:46.2]} 9... Bc5
{[%clk 0:02:35.6]} 10. Qe2 {[%clk 0:02:42.4]} 10... Nbd7 {[%clk 0:02:33.7]} 11.
Nd1 {[%clk 0:02:29.4]} 11... a5 {[%clk 0:02:30.2]} 12. Be3 {[%clk 0:02:29.1]}
12... a4 {[%clk 0:02:29.7]} 13. Bxc5 {[%clk 0:02:27.9]} 13... Qxc5 {[%clk
0:02:29.4]} 14. Qe3 {[%clk 0:02:24.8]} 14... Qxe3+ {[%clk 0:02:17]} 15. Nxe3
{[%clk 0:02:25.7]} 15... Ke7 {[%clk 0:02:09.6]} 16. O-O-O {[%clk 0:02:23.2]}
16... Re8 {[%clk 0:01:55.1]} 17. g4 {[%clk 0:02:22.5]} 17... h6 {[%clk
0:01:54.5]} 18. h4 {[%clk 0:02:22.2]} 18... Ng8 {[%clk 0:01:44.4]} 19. g5 {[%clk
0:02:19.7]} 19... Kf8 {[%clk 0:01:41.8]} 20. Be2 {[%clk 0:02:15.4]} 20... Nc5
{[%clk 0:01:40.8]} 21. Nd2 {[%clk 0:01:52.5]} 21... Ba6 {[%clk 0:01:33.5]} 22.
Rdf1 {[%clk 0:01:33.1]} 22... f6 {[%clk 0:01:25.2]} 23. gxh6 {[%clk 0:01:31.8]}
23... Nxh6 {[%clk 0:01:23.6]} 24. Bh5 {[%clk 0:01:29.9]} 24... Red8 {[%clk
0:01:22.3]} 25. Rfg1 {[%clk 0:01:25.8]} 25... b4 {[%clk 0:01:15.1]} 26. Bf3
{[%clk 0:01:22.6]} 26... Rd4 {[%clk 0:01:06.9]} 27. Rg2 {[%clk 0:01:13.2]} 27...
Rad8 {[%clk 0:01:06.1]} 28. Rhg1 {[%clk 0:01:13.4]} 28... R8d7 {[%clk
0:01:04.4]} 29. c3 {[%clk 0:00:29.6]} 29... bxc3 {[%clk 0:01:01.8]} 30. bxc3
{[%clk 0:00:30.5]} 30... Rd3 {[%clk 0:00:59.4]} 31. Nd1 {[%clk 0:00:26.1]} 31...
a3 {[%clk 0:00:55.5]} 32. Kc2 {[%clk 0:00:23]} 32... Bb5 {[%clk 0:00:45.4]} 33.
Bh5 {[%clk 0:00:19.7]} 33... Ba4+ {[%clk 0:00:44.6]} 34. Kc1 {[%clk 0:00:19.2]}
34... Bxd1 {[%clk 0:00:39.4]} 35. Bxd1 {[%clk 0:00:18.4]} 35... Rxc3+ {[%clk
0:00:37.7]} 36. Kb1 {[%clk 0:00:18.7]} 36... Rcd3 {[%clk 0:00:34.2]} 37. Kc1
{[%clk 0:00:16.4]} 37... R3d4 {[%clk 0:00:27.5]} 38. Bc2 {[%clk 0:00:15.9]}
38... Nd3+ {[%clk 0:00:23.9]} 39. Bxd3 {[%clk 0:00:14.8]} 39... Rxd3 {[%clk
0:00:23.7]} 40. Kc2 {[%clk 0:00:14.7]} 40... Rh3 {[%clk 0:00:21.7]} 41. Nc4
{[%clk 0:00:11.4]} 41... Rxh4 {[%clk 0:00:19]} 42. Re2 {[%clk 0:00:08.8]} 42...
Rd4 {[%clk 0:00:17.5]} 43. Nxa3 {[%clk 0:00:08.4]} 43... Rhxe4 {[%clk
0:00:17.2]} 44. Rge1 {[%clk 0:00:07.2]} 44... Rxe2+ {[%clk 0:00:16.5]} 45. Rxe2
{[%clk 0:00:08.1]} 45... Nxf5 {[%clk 0:00:16.3]} 46. Nb1 {[%clk 0:00:06.9]}
46... Kf7 {[%clk 0:00:15.2]} 47. Rh2 {[%clk 0:00:07.1]} 47... Ra4 {[%clk
0:00:14.1]} 48. Nc3 {[%clk 0:00:07.3]} 48... Rh4 {[%clk 0:00:13.3]} 49. a4
{[%clk 0:00:07.9]} 49... Rxh2+ {[%clk 0:00:12.8]} 0-1